Cogmind - Beta 14 @@@ ROGUE MODE // 2024.08.08 @ 23:19:36 Player: APerTAS Result: Destroyed by S-27 Virus with Autogun Performance ------------- Evolutions (5) 2500 Regions Visited (9) 1800 Robots Destroyed (2) 10 Value Destroyed (66) 66 Prototype IDs (0) 0 Alien Tech Used (0) 0 Bonus (1145) 1145 TOTAL SCORE: 5521 Bonus ------- Follower Combat Kills 45 Met Warlord at Base 500 MAIN.C Attacked Warlord 500 Warlord Defense Kills 100 Cogmind --------- Core Integrity 0/1000 Matter 300/300 Energy 100/100 System Corruption 4% Temperature Cool (0) Movement Core (50) Location -5/Warlord Parts ------- > --- POWER (1) -------- (None) > --- PROPULSION (2) --- (None) > --- UTILITY (12) ----- (None) > --- WEAPON (2) ------- (None) > --- INVENTORY (5) ---- Advanced Signal Interpreter Heavy Missile Launcher Greatsword Peak State ------------ > --- POWER ------------ Backup Power III > --- PROPULSION ------- Backup Propulsion III Backup Propulsion III > --- UTILITY ---------- Backup Plating III Backup Plating III > --- WEAPON ----------- Backup Laser III Backup Laser III > --- INVENTORY -------- Advanced Signal Interpreter Heavy Missile Launcher Greatsword [Rating: 22] Favorites ----------- Power Backup Power III Engine Backup Power III Propulsion Backup Propulsion III Hover Unit Backup Propulsion III Utility Backup Plating III Protection Backup Plating III Weapon Backup Laser III Energy Gun Backup Laser III Build | -11 -10 -9 -8 -7 -6 -5 -5 -5 -5 ------- Run | Yrd Mat Mat Mat Fac Fac Fac Upp Upp War Slots Evolved 10 | . . 2 2 2 2 2 . . . Power . | . . . . . . . . . . Propulsion . | . . . . . . . . . . Utility 10 | . . 2 2 2 2 2 . . . Weapon . | . . . . . . . . . . Parts Attached . | . . . . . . . . . . Power . | . . . . . . . . . . Engine . | . . . . . . . . . . Core . | . . . . . . . . . . Reactor . | . . . . . . . . . . Propulsion . | . . . . . . . . . . Treads . | . . . . . . . . . . Leg . | . . . . . . . . . . Wheel . | . . . . . . . . . . Hover . | . . . . . . . . . . Flight . | . . . . . . . . . . Utility . | . . . . . . . . . . Device . | . . . . . . . . . . Storage . | . . . . . . . . . . Processor . | . . . . . . . . . . Hackware . | . . . . . . . . . . Protection . | . . . . . . . . . . Artifact . | . . . . . . . . . . Weapon . | . . . . . . . . . . Energy Gun . | . . . . . . . . . . Energy Cannon . | . . . . . . . . . . Ballistic Gun . | . . . . . . . . . . Ballistic Cannon . | . . . . . . . . . . Launcher . | . . . . . . . . . . Special Weapon . | . . . . . . . . . . Impact Weapon . | . . . . . . . . . . Slashing Weapon . | . . . . . . . . . . Piercing Weapon . | . . . . . . . . . . Special Melee Weapon . | . . . . . . . . . . Unidentified Prototypes . | . . . . . . . . . . Parts Lost 7 | . . . . . . . . . 7 Power 1 | . . . . . . . . . 1 Propulsion 2 | . . . . . . . . . 2 Utility 2 | . . . . . . . . . 2 Weapon 2 | . . . . . . . . . 2 Highest Loss Streak 7 | . . . . . . . . . 7 To Critical Strikes . | . . . . . . . . . . Average Slot Usage (%) 3 | . . . . . . . . . 17 Energy Gun 1 | . . . . . . . . . 5 Peak Build Rating 22 | . . . . 1 1 1 1 1 22 Average Rating 2 | . . . . . 1 1 1 1 9 On Entrance . | . . . . . 1 1 1 1 1 Naked Turns 1134 | . 87 64 84 112 225 135 213 92 122 Heaviest Build 10 | . . . . . . . . . 10 Greatest Support 16 | 3 3 3 3 3 3 3 3 3 16 Greatest Overweight (x) 1 | . . . . . . . . . 1 Average Overweight (x) . | . . . . . . . . . . Largest Inventory Capacity 5 | 5 5 5 5 5 5 5 5 5 5 Average Capacity 5 | 5 5 5 5 5 5 5 5 5 5 Most Carried 4 | . . . . 3 3 3 4 4 4 Average Carried 2 | . . . . . 3 3 3 4 4 Final Capacity 5 | 5 5 5 5 5 5 5 5 5 5 Final Carried 4 | . . . . 3 3 3 4 4 4 Class Distribution -------------------- 100% | Mutant Dominant Class ---------------- Mutant | -10/Materials Mutant | -9/Materials Mutant | -8/Materials Mutant | -7/Factory Mutant | -6/Factory Mutant | -5/Factory Mutant | -5/Upper Caves Mutant | -5/Upper Caves Mutant | -5/Warlord Resources | -11 -10 -9 -8 -7 -6 -5 -5 -5 -5 ----------- Run | Yrd Mat Mat Mat Fac Fac Fac Upp Upp War Matter Collected 91 | . 22 . . . . . 69 . . Remotely . | . . . . . . . . . . Salvage Created 66 | . 22 . . . . . . . 44 Parts 4 | . 3 . . . . . . . 1 Haulers Intercepted . | . . . . . . . . . . Recyclers Shooed . | . . . . . . . . . . Parts Field Recycled . | . . . . . . . . . . Retrieved Matter . | . . . . . . . . . . Parts Self-Destructed 2 | . . . . . . . 1 1 . Prevented . | . . . . . . . . . . Kills | -11 -10 -9 -8 -7 -6 -5 -5 -5 -5 ------- Run | Yrd Mat Mat Mat Fac Fac Fac Upp Upp War Combat Hostiles Destroyed 1 | . . . . . . . . . 1 Melee 1 | . . . . . . . . . 1 Classes Destroyed 2 | . 1 . . . . . . . 1 Watcher 1 | . 1 . . . . . . . . Duelist 1 | . . . . . . . . . 1 Best Kill Streak 1 | . 1 . . . . . . . 1 Combat Bots Only 1 | . . . . . . . . . 1 Max Kills in Single Turn 1 | . 1 . . . . . . . 1 Gunslinging . | . . . . . . . . . . Exploded . | . . . . . . . . . . Melee 1 | . . . . . . . . . 1 Uniques/NPCs Destroyed . | . . . . . . . . . . Combat | -11 -10 -9 -8 -7 -6 -5 -5 -5 -5 -------- Run | Yrd Mat Mat Mat Fac Fac Fac Upp Upp War Hostile Shots Fired 264 | . 23 23 24 21 48 . 50 9 66 Missed 110 | . 5 8 7 10 27 . 23 5 25 Damage Taken 2422 | . 188 210 252 129 175 . 380 80 1008 Core 1969 | . 188 210 252 129 175 . 380 80 555 Absorbed by Shields . | . . . . . . . . . . Core Remaining (%) 64 | 100 24 47 54 81 79 . . . . Volleys Fired 1 | . . . . . . . . . 1 Largest 2 | . . . . . . . . . 2 Hottest 80 | . . . . . . . . . 80 Shots Fired 2 | . . . . . . . . . 2 Gun 2 | . . . . . . . . . 2 Cannon . | . . . . . . . . . . Launcher . | . . . . . . . . . . Special . | . . . . . . . . . . Kinetic . | . . . . . . . . . . Thermal 2 | . . . . . . . . . 2 Explosive . | . . . . . . . . . . Electromagnetic . | . . . . . . . . . . Robot Hit Streak . | . . . . . . . . . . Robot Miss Streak . | . . . . . . . . . . Penetration Max . | . . . . . . . . . . Secondary Targets . | . . . . . . . . . . Shots Hit Robots . | . . . . . . . . . . Core Hits 6 | . 2 . 1 . 1 . 1 . 1 Critical Kills . | . . . . . . . . . . Critical Parts Destroyed . | . . . . . . . . . . Critical Strikes . | . . . . . . . . . . Melee Attacks . | . . . . . . . . . . Impact . | . . . . . . . . . . Slashing . | . . . . . . . . . . Piercing . | . . . . . . . . . . Sneak Attacks . | . . . . . . . . . . Combat Hostiles . | . . . . . . . . . . Follow-up Attacks . | . . . . . . . . . . Damage Inflicted 153 | . 57 23 32 . 31 . 6 . 4 Guns . | . . . . . . . . . . Cannons . | . . . . . . . . . . Explosions . | . . . . . . . . . . Melee . | . . . . . . . . . . Ramming 153 | . 57 23 32 . 31 . 6 . 4 Kinetic . | . . . . . . . . . . Thermal . | . . . . . . . . . . Explosive . | . . . . . . . . . . Electromagnetic . | . . . . . . . . . . Impact . | . . . . . . . . . . Slashing . | . . . . . . . . . . Piercing . | . . . . . . . . . . Highest Corruption 4 | . 2 . . . . . . . 4 Average Corruption 2 | . 1 . . . . . . . 3 Corruption Purged . | . . . . . . . . . . Corruption Blocked . | . . . . . . . . . . Overload Shots . | . . . . . . . . . . Overflow Damage . | . . . . . . . . . . Projectiles . | . . . . . . . . . . Explosions . | . . . . . . . . . . Melee . | . . . . . . . . . . Knockbacks 2 | . . 1 1 . . . . . . Impact 2 | . . 1 1 . . . . . . Kinetic . | . . . . . . . . . . Secondary . | . . . . . . . . . . Self-Inflicted Damage 70 | . 25 11 15 . 15 . 2 . 2 Shots . | . . . . . . . . . . Rammed 34 | . 13 7 4 . 6 . 3 . 1 Targets Rammed 34 | . 13 7 4 . 6 . 3 . 1 Kicked . | . . . . . . . . . . Crushed . | . . . . . . . . . . Highest Temperature . | . . . . . . . . . . Average Temperature . | . . . . . . . . . . Received Heat Transfer 432 | . 30 63 108 15 39 . 45 27 105 Siege Activations . | . . . . . . . . . . Robots Corrupted . | . . . . . . . . . . Combat Hostiles . | . . . . . . . . . . Parts Fried 1 | . . . . . . . . . 1 Impact Corruptions . | . . . . . . . . . . Robots Melted . | . . . . . . . . . . Combat Hostiles . | . . . . . . . . . . Parts Melted . | . . . . . . . . . . Heat Transferred . | . . . . . . . . . . Parts Sabotaged . | . . . . . . . . . . Parts Stolen . | . . . . . . . . . . Parts Stripped . | . . . . . . . . . . Power Chain Reactions . | . . . . . . . . . . Alert | -11 -10 -9 -8 -7 -6 -5 -5 -5 -5 ------- Run | Yrd Mat Mat Mat Fac Fac Fac Upp Upp War Peak Influence 204 | . 97 55 148 172 204 99 . . . Initial 99 | . . 40 22 67 84 99 . . . Average 82 | . 25 43 66 105 102 99 . . . Maximum Alert Level 1 | . . . . . 1 . . . . Low Security (%) 97 | 100 100 100 100 100 92 100 . . . Level 1 2 | . . . . . 8 . . . . Level 2 . | . . . . . . . . . . Level 3 . | . . . . . . . . . . Level 4 . | . . . . . . . . . . Level 5 . | . . . . . . . . . . High Security . | . . . . . . . . . . Max Security . | . . . . . . . . . . Squads Dispatched 10 | . 2 1 2 2 1 2 . . . Investigation 5 | . 2 . . . 1 2 . . . Extermination . | . . . . . . . . . . Reinforcement 4 | . . 1 2 1 . . . . . Assault . | . . . . . . . . . . Garrison 1 | . . . . 1 . . . . . Intercept . | . . . . . . . . . . Searches Triggered . | . . . . . . . . . . Construction Impeded . | . . . . . . . . . . Haulers Reinforced . | . . . . . . . . . . Active Scanning Responses . | . . . . . . . . . . Cargo Convoy Interrupts . | . . . . . . . . . . Stealth | -11 -10 -9 -8 -7 -6 -5 -5 -5 -5 --------- Run | Yrd Mat Mat Mat Fac Fac Fac Upp Upp War Distress Signals 2 | . 1 . . 1 . . . . . Communications Jammed . | . . . . . . . . . . Distress Signals . | . . . . . . . . . . Times Spotted 92 | . 10 10 11 8 6 . 13 11 23 Peak Tracking Total 21 | . 9 9 8 5 8 . 8 6 21 Tactical Retreats 10 | . . . 1 1 2 . 3 3 . Traps | -11 -10 -9 -8 -7 -6 -5 -5 -5 -5 ------- Run | Yrd Mat Mat Mat Fac Fac Fac Upp Upp War Traps Triggered 2 | . . 1 . 1 . . . . . Indirectly . | . . . . . . . . . . Trap Hack Attempts . | . . . . . . . . . . Triggered . | . . . . . . . . . . Disarmed . | . . . . . . . . . . Reprogrammed . | . . . . . . . . . . Reused . | . . . . . . . . . . Traps Extracted . | . . . . . . . . . . Installed . | . . . . . . . . . . Triggered 4 | . . . . . . . . . 4 Machines | -11 -10 -9 -8 -7 -6 -5 -5 -5 -5 ---------- Run | Yrd Mat Mat Mat Fac Fac Fac Upp Upp War Machines Disabled . | . . . . . . . . . . Max in Single Turn . | . . . . . . . . . . Machines Repaired . | . . . . . . . . . . Machines Dismantled . | . . . . . . . . . . Machines Sabotaged . | . . . . . . . . . . Overloaded Fab Kills . | . . . . . . . . . . Hacking | -11 -10 -9 -8 -7 -6 -5 -5 -5 -5 --------- Run | Yrd Mat Mat Mat Fac Fac Fac Upp Upp War Machines Accessed 6 | . 2 . 1 . 1 2 . . . Terminals 6 | . 2 . 1 . 1 2 . . . Fabricators . | . . . . . . . . . . Repair Stations . | . . . . . . . . . . Recycling Units . | . . . . . . . . . . Scanalyzers . | . . . . . . . . . . Garrison Access . | . . . . . . . . . . Total Hacks 16 | . 6 . 2 . 2 6 . . . Successful 2 | . . . 1 . . 1 . . . Failed 14 | . 6 . 1 . 2 5 . . . Catastrophic 2 | . 2 . . . . . . . . Database Lockouts . | . . . . . . . . . . Manual 10 | . 6 . 2 . . 2 . . . Terminals 16 | . 6 . 2 . 2 6 . . . Fabricators . | . . . . . . . . . . Repair Stations . | . . . . . . . . . . Recycling Units . | . . . . . . . . . . Scanalyzers . | . . . . . . . . . . Garrison Access . | . . . . . . . . . . Terminal Hacks 1 | . . . . . . 1 . . . Record 1 | . . . . . . 1 . . . Fabricator Hacks . | . . . . . . . . . . Repair Station Hacks . | . . . . . . . . . . Recycling Unit Hacks . | . . . . . . . . . . Scanalyzer . | . . . . . . . . . . Garrison Access Hacks . | . . . . . . . . . . Unauthorized Hacks 1 | . . . 1 . . . . . . Terminals 1 | . . . 1 . . . . . . Assimilate 1 | . . . 1 . . . . . . Fabricators . | . . . . . . . . . . Repair Stations . | . . . . . . . . . . Recycling Units . | . . . . . . . . . . Scanalyzers . | . . . . . . . . . . Garrison Access . | . . . . . . . . . . Data Cores Recovered . | . . . . . . . . . . Used . | . . . . . . . . . . Hacking Detections 6 | . 2 . 1 . 1 2 . . . Full Trace Events 5 | . 2 . . . 1 2 . . . Feedback Events 1 | . 1 . . . . . . . . Corruption 1 | . 1 . . . . . . . . Feedback Blocked . | . . . . . . . . . . Robot Schematics Acquired . | . . . . . . . . . . Robots Built . | . . . . . . . . . . Authchips . | . . . . . . . . . . Time . | . . . . . . . . . . Total Robot Build Rating . | . . . . . . . . . . Part Schematics Acquired . | . . . . . . . . . . Parts Built . | . . . . . . . . . . Authchips . | . . . . . . . . . . Time . | . . . . . . . . . . Total Part Build Rating . | . . . . . . . . . . Parts Repaired . | . . . . . . . . . . Time . | . . . . . . . . . . Parts Recycled . | . . . . . . . . . . Recycled Matter . | . . . . . . . . . . Retrieved Matter . | . . . . . . . . . . Retrieved Components . | . . . . . . . . . . Parts Scanalyzed . | . . . . . . . . . . Part Schematics Acquired . | . . . . . . . . . . Parts Damaged . | . . . . . . . . . . Bothacking | -11 -10 -9 -8 -7 -6 -5 -5 -5 -5 ------------ Run | Yrd Mat Mat Mat Fac Fac Fac Upp Upp War Used RIF Installer . | . . . . . . . . . . Robots Hacked . | . . . . . . . . . . Non-combat . | . . . . . . . . . . Combat . | . . . . . . . . . . Robot Hacks Applied . | . . . . . . . . . . Relay Couplers Released . | . . . . . . . . . . Fabnet Peak Effective % . | . . . . . . . . . . Robots Rewired . | . . . . . . . . . . Allies Hacked . | . . . . . . . . . . Hacks Repelled . | . . . . . . . . . . Allies | -11 -10 -9 -8 -7 -6 -5 -5 -5 -5 -------- Run | Yrd Mat Mat Mat Fac Fac Fac Upp Upp War Total Allies 3 | . . . . 3 . . . . . Largest Group 3 | . . . . 3 . . . . . Highest-Rated Group 93 | . . . . 93 . . . . . Highest-Rated Ally 31 | . . . . 31 . . . . . Total Orders . | . . . . . . . . . . Ally Attacks 19 | . . . . 19 . . . . . Total Damage 300 | . . . . 300 . . . . . Kills 2 | . . . . 2 . . . . . Allies Corrupted . | . . . . . . . . . . Allies Melted . | . . . . . . . . . . Intel | -11 -10 -9 -8 -7 -6 -5 -5 -5 -5 ------- Run | Yrd Mat Mat Mat Fac Fac Fac Upp Upp War Robot Analysis Total . | . . . . . . . . . . Derelict Logs Recovered . | . . . . . . . . . . Drone Launches . | . . . . . . . . . . Drone Recoveries . | . . . . . . . . . . Exploration | -11 -10 -9 -8 -7 -6 -5 -5 -5 -5 ------------- Run | Yrd Mat Mat Mat Fac Fac Fac Upp Upp War Turns Passed 1277 | 10 87 64 84 112 225 135 213 92 255 Spaces Moved 2269 | 20 149 113 160 220 353 270 417 183 384 Core 2149 | 20 149 113 160 220 353 270 417 183 264 Treads . | . . . . . . . . . . Legs . | . . . . . . . . . . Wheels . | . . . . . . . . . . Hover 120 | . . . . . . . . . 120 Flight . | . . . . . . . . . . Fastest Speed 50 | 50 50 50 50 50 50 50 50 50 50 Average Speed 51 | 50 50 50 50 50 50 50 50 50 59 Slowest Speed 100 | 50 50 50 50 50 50 50 50 50 100 Overloaded Moves . | . . . . . . . . . . Propulsion Burnouts . | . . . . . . . . . . Robots Hopped . | . . . . . . . . . . Cave-ins Triggered . | . . . . . . . . . . Exploration Rate (%) 25 | 3 39 18 22 10 7 6 60 40 51 Regions Visited 9 Branch Regions 3 Pre-discovered Areas . | . . . . . . . . . . Known Exits Taken . | . . . . . . . . . . Unknown Exits Taken 9 | 1 1 1 1 1 1 1 1 1 . Scrap Searched 2 | . . . . . . . 1 1 . Spaces Dug . | . . . . . . . . . . Terrain Destroyed . | . . . . . . . . . . Melee . | . . . . . . . . . . Projectile . | . . . . . . . . . . AOE . | . . . . . . . . . . Terrain Rammed . | . . . . . . . . . . Walls Destroyed . | . . . . . . . . . . Machines Disabled . | . . . . . . . . . . Actions | -11 -10 -9 -8 -7 -6 -5 -5 -5 -5 --------- Run | Yrd Mat Mat Mat Fac Fac Fac Upp Upp War Total 2361 | 19 161 119 163 221 400 269 420 182 407 Wait 63 | . . . . . 42 . . . 21 Move 2261 | 19 149 112 159 219 352 269 416 182 384 Hop . | . . . . . . . . . . Pick Up 3 | . . . . 2 . . 1 . . Fast Attach . | . . . . . . . . . . Attach . | . . . . . . . . . . Detach . | . . . . . . . . . . Swap . | . . . . . . . . . . Drop . | . . . . . . . . . . Fire 1 | . . . . . . . . . 1 Melee . | . . . . . . . . . . Ram 33 | . 12 7 4 . 6 . 3 . 1 Kick . | . . . . . . . . . . Crush . | . . . . . . . . . . Escape Stasis . | . . . . . . . . . . Rewire . | . . . . . . . . . . Trap . | . . . . . . . . . . Miscellaneous . | . . . . . . . . . . Route ------- -11/Scrapyard -10/Materials -9/Materials -8/Materials -7/Factory -6/Factory -5/Factory -5/Upper Caves -5/Upper Caves (discovered 2 exits: [*Fac] / [*War]) -5/Warlord (discovered 1 exit: [*Pro]) History --------- Turn | Location | Event 2 | -11/Scrapyard | Discovered new exit (range 16) 11 | -11/Scrapyard | Entered Materials 94 | -10/Materials | Core integrity fell below 50% 95 | -10/Materials | Discovered new exit (range 5) 98 | -10/Materials | Entered another Materials area 98 | -9/Materials | Evolved 2 slots: Utility x2 158 | -9/Materials | Discovered new exit (range 9) 162 | -9/Materials | Core integrity fell below 50% 162 | -9/Materials | Entered another Materials area 162 | -8/Materials | Evolved 2 slots: Utility x2 244 | -8/Materials | Discovered new exit (range 5) 246 | -8/Materials | Entered Factory 246 | -7/Factory | Evolved 2 slots: Utility x2 297 | -7/Factory | Allied Derelicts emerged from ambush trap array 305 | -7/Factory | Build established: Mutant 349 | -7/Factory | Garrison activated, responded to threat 351 | -7/Factory | Discovered new exit (range 16) 358 | -7/Factory | Entered another Factory area 358 | -6/Factory | Evolved 2 slots: Utility x2 574 | -6/Factory | Discovered new exit (range 14) 583 | -6/Factory | Entered another Factory area 583 | -5/Factory | Evolved 2 slots: Utility x2 711 | -5/Factory | Discovered new exit (range 15) 718 | -5/Factory | Entered Upper Caves 791 | -5/Upper Caves | Spotted B-75 Beast 923 | -5/Upper Caves | Attracted the attention of an 0b10 base 927 | -5/Upper Caves | Discovered new exit (range 10) 931 | -5/Upper Caves | Entered another Upper Caves area 939 | -5/Upper Caves | Discovered new exit (range 14) 959 | -5/Upper Caves | Attracted the attention of an 0b10 checkpoint 1020 | -5/Upper Caves | Discovered new exit (range 5) 1023 | -5/Upper Caves | Entered Warlord 1038 | -5/Warlord | Discovered new exit (range 14) 1147 | -5/Warlord | Met Warlord 1172 | -5/Warlord | Warlord's base attacked by MAIN.C 1219 | -5/Warlord | Spotted B-75 Beast 1235 | -5/Warlord | Spotted B-86 Titan 1253 | -5/Warlord | Core integrity fell below 50% 1267 | -5/Warlord | Core integrity fell below 20% 1278 | -5/Warlord | Destroyed by S-27 Virus with Autogun Last Messages --------------- 01256_ System Quarantine Field Array disabled. 01256_ Backup Laser III destroyed. 01258_ Backup Plating III destroyed. 01261_ Slug penetrates B-75 Beast. 01262_ ANNOUNCEMENT: MAIN.C reinforcements approaching through caves, arriving soon. 01262_ Backup Propulsion III destroyed. 01263_ Slammed into L-41 Fighter. 01263_ Microactuators fried. 01263_ L-41 Fighter destroyed. 01265_ Penetrated by Slug. 01265_ Backup Laser III destroyed. 01265_ System corrupted by crushing effect (+3). 01265_ Knocked back. 01265_ P-80 Master misfires. 01266_ Knocked back. 01268_ P-80 Master resets B-74 Champion, system corruption cleaned. 01272_ ANNOUNCEMENT: Detected 1 Grunt squad, 2 Melee squads, 1 Hunter squad. 01276_ Penetrated by Slug. Map ----- +----------------------------------------------------+ | | | | | | | | | | | | | ??????????????????????????????????? | | ??????????????????????????????????? | | ??????????????????????????????????? | | ??????????????????????????????????? | | ??????????????????????????????????? | | ??????????????????????????????????? | | ??????????????????????????????????? | | ??????????????????????????????????? | | ??????????????????????????????????? | | ??????????????????????????????????? | | ??????????????????????????????????? | | ??????????????????????????????????? | | ??????????????????????????####????? | | ????????????????????????## ###??? | | ???????????????????????## b#### | | ??????????????????????## < g | | ??????????????????????# s b ig < | | ???????????? ????????# l g #? | | ????????????? ???????# lh g#?? | | ?????????????# ???????# @ sh;#??? | | ??????????????# ??????#; b b;#??? | | ???????????????# ???#### ;;##??? | | ???????????????# ####" ###???? | | ???????????????# ###?? | | ???????????????## """ ;## ##? | | ????????????????## ;##? #? | | ?????????????????##" ;#??? #? | | "????????????????##" #??? ##? | | "#???????????????# "" ##??? #?? | | "#???????????????###"# #??? ##? | | "#####?????????????#### ##?? #? | | " "############?????## ### ##? | | " """"""""""""##?????## # ##?? | | " "" """""""#####?## ##??? | | "## ### ##??? | | ^ + ## #??? | | ^ % =% "% #### #??? | | ""## ##??# #??? | | " % """""" ""# ### #???# ##?? | | " " """""""""###?# #?### #?? | | " %############???# #### # #?? | | "#"###?????????????## #?# #?? | | "" #??????????????## ### #?? | | "###??????????????# ### ##?? | +----------------------------------------------------+ Best States ------------- Heat Dissipation 40 Energy Generation 11 Energy Capacity 100 Matter Stores 300 Matter Capacity 300 Sight Range 16 Terrain Scan Density 10 Armor Coverage 160 Evasion (%) 50 Item Schematics ----------------- None Robot Schematics ------------------ None Fabricated ------------ Nothing Alien Tech Used ----------------- None Achievements -------------- None Challenges ------------ None Game ------ Seed HybridTechExpander Manual? 0 Play Time 00:17:03 Cumulative 17.6 hours Start 2024.08.08 @ 23:05:25 End 2024.08.08 @ 23:19:36 Sessions 1 Manual Loads 0 Difficulty Rogue Special Mode None Game No. 83 Rogue 83 Adventurer 0 Explorer 0 Win Type - Total 0 Types 0/0/0/0/0/0/0/0/0 Lore% 27 Gallery% 22 Achievement% 32 Wizard Run 0 Options --------- Layout 0 ASCII 0 Keyboard 0 Movement Arrows Keybinds 0 Fullscreen 2 Font 18/Terminus Map View 76x50 Zoom Use 0% Tactical HUD 1 Map Filters NONE Filters NONE Steam 1 RUN: 7d95608b-939c-45ae-ada1-f2abe8654787